bitfinex/quotes_SOLUSD_20241113
["timestamp","ask_amount","ask_price","bid_price","bid_amount"]
[1731466860233,4.8202,207.46,207.32,16.2171]
[1731466860434,22.21340275,207.37,207.32,16.2171]
[1731466861044,22.21340275,207.36,207.32,16.2171]
[1731466861249,22.21340275,207.34,207.27,45.99028675]
[1731466861431,22.21340275,207.35,207.29,312.0]
[1731466861637,22.21340275,207.34,207.29,312.0]
[1731466862041,22.21340275,207.35,207.29,312.0]
[1731466862554,22.21340275,207.4,207.32,22.21340275]
[1731466863147,22.21340275,207.37,207.3,22.21340275]
[1731466863350,22.21340275,207.34,207.26,45.09290275]
[1731466863652,22.21340275,207.35,207.28,22.21340275]
[1731466864150,22.21340275,207.34,207.27,20.0]
[1731466864352,22.21340275,207.28,207.21,28.39240275]
[1731466864652,22.21340275,207.26,207.18,38.58240275]
[1731466864828,22.21340275,207.28,207.2,22.21340275]
[1731466865440,22.21340275,207.28,207.23,312.0]
[1731466865938,22.21340275,207.29,207.23,312.0]
[1731466866332,22.21340275,207.28,207.23,312.0]
[1731466866632,22.21340275,207.27,207.23,312.0]
[1731466867038,22.21340275,207.25,207.16,28.88122485]
[1731466867444,22.21340275,207.24,207.16,28.88122485]
[1731466867765,22.21340275,207.25,207.17,22.21340275]
[1731466867926,22.21340275,207.24,207.17,22.21340275]
[1731466868351,22.21340275,207.26,207.19,22.21340275]
[1731466869440,22.21340275,207.25,207.17,22.21340275]
[1731466869843,22.21340275,207.26,207.18,22.21340275]
[1731466870147,22.21340275,207.3,207.19,312.0]
[1731466870348,22.21340275,207.3,207.23,22.21340275]
[1731466870737,22.21340275,207.3,207.22,22.21340275]
[1731466871244,22.21340275,207.29,207.22,22.21340275]
[1731466871833,22.21340275,207.3,207.22,22.21340275]
[1731466872039,6.2001,207.36,207.24,22.21340275]
[1731466872040,22.21340275,207.31,207.24,22.21340275]
[1731466872247,22.21340275,207.32,207.25,22.21340275]
[1731466872560,22.21340275,207.35,207.28,22.21340275]
[1731466872736,22.21340275,207.36,207.29,22.21340275]
[1731466873252,22.21340275,207.36,207.25,15.6688]
[1731466873253,22.21340275,207.35,207.28,22.21340275]
[1731466873551,22.21340275,207.36,207.29,22.21340275]
[1731466873735,22.21340275,207.37,207.3,22.21340275]
[1731466873934,6.2001,207.41,207.31,22.21340275]
[1731466873935,22.21340275,207.39,207.31,22.21340275]
[1731466874336,22.21340275,207.35,207.28,28.43260275]
[1731466874537,6.2001,207.41,207.29,23.776884]
[1731466874743,22.21340275,207.38,207.31,22.21340275]
[1731466875052,22.21340275,207.39,207.31,22.21340275]
[1731466875237,22.21340275,207.38,207.31,22.21340275]
[1731466875439,22.21340275,207.39,207.32,22.21340275]
[1731466875659,22.21340275,207.38,207.31,22.21340275]
[1731466876048,22.21340275,207.41,207.34,22.21340275]
[1731466876246,22.21340275,207.41,207.33,22.21340275]
[1731466876445,11.0204,207.46,207.33,22.21340275]
[1731466876446,22.21340275,207.39,207.33,312.0]
[1731466876651,22.21340275,207.4,207.33,334.21340275]
[1731466876846,22.21340275,207.4,207.33,22.21340275]
[1731466877057,22.21340275,207.36,207.31,20.0]
[1731466877356,22.21340275,207.35,207.31,20.0]
[1731466877757,22.21340275,207.35,207.29,43.776884]
[1731466877953,22.21340275,207.37,207.29,65.99028675]
[1731466878248,22.21340275,207.37,207.31,20.0]
[1731466879463,22.21340275,207.4,207.32,22.21340275]
[1731466879647,22.21340275,207.39,207.32,22.21340275]
[1731466879959,22.21340275,207.38,207.31,23.776884]
[1731466880145,22.21340275,207.38,207.32,20.0]
[1731466880458,22.21340275,207.38,207.31,45.99028675]
[1731466880674,22.21340275,207.39,207.32,20.0]
[1731466881544,22.21340275,207.39,207.32,22.21340275]
[1731466881953,22.21340275,207.39,207.32,42.21340275]
[1731466882361,22.21340275,207.42,207.35,22.21340275]
[1731466882662,22.21340275,207.44,207.37,20.0]
[1731466882972,6.2537,207.51,207.4,22.21340275]
[1731466883143,22.21340275,207.46,207.39,22.21340275]
[1731466883853,22.21340275,207.46,207.38,65.99028675]
[1731466884558,22.21340275,207.46,207.39,22.21340275]
[1731466884868,22.21340275,207.44,207.38,20.0]
[1731466885365,22.21340275,207.41,207.34,22.21340275]
[1731466885551,22.21340275,207.36,207.32,15.1074]
[1731466885941,22.21340275,207.34,207.27,15.1074]
[1731466886151,22.21340275,207.4,207.27,15.1074]
[1731466886152,22.21340275,207.33,207.27,15.1074]
[1731466886462,22.21340275,207.35,207.28,22.21340275]
[1731466886664,22.21340275,207.37,207.3,22.21340275]
[1731466886868,22.21340275,207.38,207.3,22.21340275]
[1731466887066,22.21340275,207.38,207.31,22.21340275]
[1731466887786,22.21340275,207.38,207.31,20.0]
[1731466887961,22.21340275,207.37,207.31,43.776884]
[1731466888167,22.21340275,207.39,207.31,65.99028675]
[1731466888351,22.21340275,207.38,207.31,42.21340275]
[1731466888546,22.21340275,207.37,207.3,20.0]
[1731466888957,22.21340275,207.38,207.31,20.0]
[1731466889159,22.21340275,207.37,207.3,20.0]
[1731466890577,22.21340275,207.35,207.27,37.32080275]
[1731466892556,22.21340275,207.33,207.27,15.1074]
[1731466892751,22.21340275,207.35,207.27,37.32080275]
[1731466893270,22.21340275,207.33,207.27,15.1074]
[1731466894373,22.21340275,207.3,207.23,6.6052]
[1731466894666,22.21340275,207.27,207.2,22.21340275]
[1731466894874,16.9763,207.39,207.22,22.21340275]
[1731466894875,22.21340275,207.3,207.22,22.21340275]
[1731466895077,22.21340275,207.31,207.24,22.21340275]
[1731466895295,22.21340275,207.3,207.23,22.21340275]
[1731466895573,22.21340275,207.29,207.21,22.21340275]
[1731466895773,22.21340275,207.27,207.19,22.21340275]
[1731466896161,22.21340275,207.3,207.23,22.21340275]
[1731466896467,22.21340275,207.31,207.24,22.21340275]
[1731466896869,22.19340275,207.31,207.24,22.21340275]
[1731466897370,22.21340275,207.35,207.28,22.21340275]
[1731466897576,22.21340275,207.36,207.28,22.21340275]
[1731466898570,22.21340275,207.35,207.28,22.21340275]
[1731466898775,22.21340275,207.35,207.28,334.21340275]
[1731466898976,22.21340275,207.41,207.34,22.21340275]
[1731466899162,22.21340275,207.44,207.37,22.21340275]
[1731466899481,22.21340275,207.42,207.29,30.060884]
[1731466899656,22.21340275,207.42,207.34,22.21340275]
[1731466899975,22.21340275,207.41,207.33,22.21340275]
[1731466900184,22.21340275,207.4,207.33,22.21340275]
[1731466900370,22.21340275,207.39,207.32,22.21340275]
[1731466900878,22.21340275,207.37,207.31,22.21340275]
[1731466901580,22.21340275,207.37,207.29,22.21340275]
[1731466902279,22.21340275,207.37,207.29,334.21340275]
[1731466902802,22.21340275,207.3,207.19,22.21340275]
[1731466902980,22.21340275,207.27,207.19,22.21340275]
[1731466903466,15.7619,207.37,207.21,22.21340275]
[1731466903786,22.21340275,207.3,207.21,22.21340275]
[1731466904967,22.21340275,207.32,207.25,22.21340275]
[1731466905174,22.21340275,207.36,207.27,22.21340275]
[1731466905592,22.21340275,207.36,207.28,312.0]
[1731466906779,22.21340275,207.36,207.29,22.21340275]
[1731466907285,22.21340275,207.34,207.28,312.0]
[1731466907580,22.21340275,207.34,207.26,22.21340275]
[1731466909674,22.21340275,207.32,207.24,22.21340275]
[1731466910071,22.21340275,207.28,207.21,22.21340275]
[1731466910296,22.21340275,207.28,207.19,28.21410275]
[1731466910475,22.21340275,207.28,207.21,312.0]
[1731466910781,0.1,207.36,207.21,312.0]
[1731466910782,4.8227,207.35,207.21,312.0]
[1731466910973,22.21340275,207.29,207.22,22.21340275]
[1731466911173,22.21340275,207.27,207.2,22.21340275]
[1731466911585,22.21340275,207.25,207.18,37.25890275]
[1731466912794,22.21340275,207.29,207.22,22.21340275]
[1731466913167,22.21340275,207.3,207.22,22.21340275]
[1731466913466,22.21340275,207.28,207.2,22.21340275]
[1731466913784,4.8227,207.35,207.19,23.776884]
[1731466913785,22.21340275,207.26,207.19,22.21340275]
[1731466914173,22.21340275,207.25,207.19,312.0]
[1731466914489,22.21340275,207.24,207.16,22.70222485]
[1731466915170,22.21340275,207.22,207.16,0.4888221]
[1731466915372,22.31340275,207.3,207.16,0.4888221]
[1731466915373,22.21340275,207.24,207.16,22.70222485]
[1731466917479,22.21340275,207.25,207.18,22.21340275]
[1731466917682,22.21340275,207.27,207.19,22.21340275]
[1731466918092,22.21340275,207.26,207.18,22.21340275]
[1731466918271,22.21340275,207.25,207.18,22.21340275]
[1731466919987,22.21340275,207.27,207.19,22.21340275]
[1731466920197,22.21340275,207.24,207.18,22.21340275]
[1731466920400,22.21340275,207.24,207.16,42.70222485]
[1731466920697,22.21340275,207.24,207.18,312.0]
[1731466925184,22.21340275,207.24,207.16,0.4888221]
[1731466927702,21.5725,207.41,207.24,6.4683]
[1731466927994,22.21340275,207.38,207.29,22.21340275]
[1731466928180,22.21340275,207.3,207.23,20.0]
[1731466928377,0.12549,207.37,207.2,16.1686]
[1731466928378,22.21340275,207.28,207.21,20.0]
[1731466928595,22.21340275,207.28,207.2,16.1686]
[1731466929484,22.21340275,207.28,207.21,22.21340275]
[1731466930310,22.21340275,207.28,207.2,16.1686]
[1731466930806,22.21340275,207.26,207.2,16.1686]
[1731466930979,22.21340275,207.26,207.19,22.21340275]
[1731466931180,22.21340275,207.26,207.19,334.21340275]
[1731466931501,22.21340275,207.28,207.19,334.21340275]
[1731466932706,22.21340275,207.3,207.21,22.21340275]
[1731466932907,22.21340275,207.34,207.27,22.21340275]
[1731466933502,22.21340275,207.36,207.27,22.21340275]
[1731466933807,22.21340275,207.36,207.26,16.5527]
[1731466933808,43.64260275,207.46,207.36,20.0]
[1731466933981,11.1022,207.53,207.43,22.21340275]
[1731466934395,11.1022,207.53,207.39,43.776884]
[1731466934605,11.1022,207.53,207.38,16.5527]
[1731466934606,0.22549,207.52,207.38,16.5527]
[1731466934793,22.21340275,207.45,207.38,16.5527]
[1731466935186,22.31340275,207.5,207.28,5.58111763]
[1731466935187,22.21340275,207.43,207.36,22.21340275]
[1731466935899,22.21340275,207.43,207.36,334.21340275]
[1731466936302,6.2835,207.53,207.36,334.21340275]
[1731466936303,22.21340275,207.49,207.42,22.21340275]
[1731466936501,34.25600275,207.6,207.47,22.21340275]
[1731466936502,22.21340275,207.55,207.47,22.21340275]
[1731466937003,22.21340275,207.56,207.49,22.21340275]
[1731466937206,0.1,207.6,207.45,20.0]
[1731466937501,0.1,207.58,207.44,23.776884]
[1731466937708,0.1,207.58,207.42,43.776884]
[1731466938098,0.1,207.62,207.42,43.776884]
[1731466938411,22.21340275,207.59,207.51,22.21340275]
[1731466938606,22.21340275,207.6,207.52,22.21340275]
[1731466938989,22.21340275,207.56,207.48,22.21340275]
[1731466939306,22.21340275,207.6,207.42,48.64898658]
[1731466939307,22.21340275,207.54,207.47,22.21340275]
[1731466939785,22.21340275,207.54,207.47,23.776884]
[1731466939991,22.21340275,207.56,207.48,22.21340275]
[1731466940190,22.21340275,207.57,207.5,22.21340275]
[1731466940587,0.12549,207.59,207.51,22.21340275]
[1731466940588,22.33889275,207.59,207.51,22.21340275]
[1731466940789,22.21340275,207.57,207.49,22.21340275]
[1731466941084,22.33889275,207.59,207.51,22.21340275]
[1731466941600,22.21340275,207.57,207.51,22.21340275]
[1731466941809,22.21340275,207.57,207.49,22.21340275]
[1731466942709,22.21340275,207.55,207.47,45.99028675]
[1731466942903,22.21340275,207.55,207.47,357.99028675]
[1731466943101,22.21340275,207.53,207.45,22.21340275]
[1731466943298,22.21340275,207.47,207.41,16.4374]
[1731466943691,22.21340275,207.43,207.35,37.36000275]
[1731466945491,22.21340275,207.41,207.35,15.1466]
[1731466945700,22.21340275,207.39,207.31,22.21340275]
[1731466946114,22.21340275,207.39,207.31,334.21340275]
[1731466947102,22.21340275,207.39,207.29,15.1466]
[1731466947103,22.21340275,207.37,207.29,37.36000275]
[1731466947704,0.1,207.46,207.29,37.36000275]
[1731466947705,22.21340275,207.39,207.31,22.21340275]
[1731466948011,22.21340275,207.42,207.34,22.21340275]
[1731466948192,22.21340275,207.42,207.36,22.21340275]
[1731466948798,22.21340275,207.42,207.34,22.21340275]
[1731466949103,22.21340275,207.4,207.32,22.21340275]
[1731466949406,22.21340275,207.4,207.34,22.21340275]
[1731466949617,22.21340275,207.42,207.34,22.21340275]
[1731466949994,22.21340275,207.48,207.4,22.21340275]
[1731466950190,0.12549,207.47,207.4,22.21340275]
[1731466950812,0.12549,207.47,207.42,22.21340275]
[1731466951599,0.12549,207.47,207.4,22.21340275]
[1731466952121,22.21340275,207.46,207.38,22.21340275]
[1731466952290,22.21340275,207.46,207.4,22.21340275]
[1731466952497,22.21340275,207.5,207.42,22.21340275]
[1731466952910,22.21340275,207.52,207.46,22.21340275]
[1731466953115,22.21340275,207.56,207.47,22.21340275]
[1731466953618,22.21340275,207.56,207.49,22.21340275]
[1731466953801,6.431,207.57,207.49,22.21340275]
[1731466954008,22.21340275,207.58,207.51,22.21340275]
[1731466954403,22.21340275,207.6,207.53,22.21340275]
[1731466955419,0.12549,207.59,207.53,22.21340275]
[1731466955725,22.21340275,207.6,207.53,22.21340275]
[1731466956298,22.21340275,207.6,207.51,22.21340275]
[1731466956703,0.12549,207.59,207.51,22.21340275]
[1731466957319,22.21340275,207.58,207.51,22.21340275]
[1731466957519,22.21340275,207.56,207.51,312.0]
[1731466957700,22.21340275,207.56,207.49,22.21340275]
[1731466957897,22.21340275,207.54,207.48,20.0]
[1731466958103,22.21340275,207.52,207.43,22.21340275]
[1731466958326,22.21340275,207.51,207.43,22.21340275]
[1731466958509,22.21340275,207.47,207.41,16.4214]
[1731466958708,22.21340275,207.45,207.37,22.21340275]
[1731466958904,22.21340275,207.46,207.39,22.21340275]
[1731466959108,22.21340275,207.48,207.39,22.21340275]
[1731466959403,22.21340275,207.5,207.44,22.21340275]
[1731466959621,22.21340275,207.51,207.43,22.21340275]
[1731466960504,22.21340275,207.49,207.36,43.776884]
[1731466960704,22.21340275,207.49,207.41,22.21340275]
[1731466961399,27.03290275,207.49,207.41,22.21340275]
[1731466961820,22.21340275,207.47,207.39,22.21340275]
[1731466962426,22.21340275,207.49,207.41,22.21340275]
[1731466963140,27.03290275,207.49,207.41,22.21340275]
[1731466963506,22.21340275,207.47,207.39,22.21340275]
[1731466963823,22.21340275,207.47,207.36,20.0]
[1731466963824,22.21340275,207.51,207.45,22.21340275]
[1731466964030,10.9113,207.55,207.47,22.21340275]
[1731466964031,33.12470275,207.55,207.47,22.21340275]
[1731466964226,0.12549,207.54,207.49,22.21340275]
[1731466964527,27.03150275,207.55,207.43,43.776884]
[1731466964703,0.12549,207.54,207.46,22.21340275]
[1731466965214,4.94389,207.54,207.46,22.21340275]
[1731466965613,4.94389,207.54,207.43,355.776884]
[1731466965614,22.21340275,207.57,207.5,22.21340275]
[1731466965810,27.03070275,207.59,207.5,22.21340275]
[1731466966005,0.12549,207.58,207.5,22.21340275]
[1731466966239,27.03070275,207.59,207.5,22.21340275]
[1731466966605,0.12549,207.58,207.5,22.21340275]
[1731466967010,22.21340275,207.59,207.52,22.21340275]
[1731466967421,27.03040275,207.6,207.52,22.21340275]
[1731466967621,22.21340275,207.6,207.52,22.21340275]
[1731466967811,0.12549,207.59,207.52,22.21340275]
[1731466968023,22.33889275,207.59,207.51,22.21340275]
[1731466969509,22.21340275,207.58,207.51,22.21340275]
[1731466969925,22.21340275,207.58,207.51,20.0]
[1731466970122,22.21340275,207.57,207.48,22.21340275]
[1731466970349,22.21340275,207.59,207.51,22.21340275]
[1731466970838,22.21340275,207.6,207.53,22.21340275]
[1731466971010,22.21340275,207.61,207.54,22.21340275]
[1731466971334,22.21340275,207.63,207.55,22.21340275]
[1731466971515,22.21340275,207.62,207.55,22.21340275]
[1731466971715,22.21340275,207.64,207.57,22.21340275]
[1731466972332,22.21340275,207.6,207.55,20.0]
[1731466972846,22.21340275,207.62,207.54,22.21340275]
[1731466973123,22.21340275,207.62,207.55,20.0]
[1731466974118,22.21340275,207.66,207.58,22.21340275]
[1731466974318,22.21340275,207.7,207.63,22.21340275]
[1731466974738,22.21340275,207.68,207.61,20.0]
[1731466974947,22.21340275,207.69,207.61,42.21340275]
[1731466975138,22.21340275,207.71,207.63,22.21340275]
[1731466975740,22.21340275,207.69,207.63,22.21340275]
[1731466975942,27.02780275,207.71,207.63,22.21340275]
[1731466977240,22.21340275,207.69,207.63,22.21340275]
[1731466978337,22.21340275,207.71,207.63,22.21340275]
[1731466978737,22.21340275,207.71,207.64,20.0]
[1731466979448,22.21340275,207.69,207.64,20.0]
[1731466979623,22.21340275,207.69,207.63,22.21340275]
[1731466980124,22.21340275,207.71,207.63,22.21340275]
[1731466980920,22.21340275,207.69,207.61,22.21340275]
[1731466981520,4.814,207.73,207.64,22.21340275]
[1731466981723,22.21340275,207.71,207.64,22.21340275]
[1731466982024,22.21340275,207.71,207.62,22.21340275]
[1731466982546,4.814,207.73,207.62,22.21340275]
[1731466982547,22.21340275,207.69,207.62,22.21340275]
[1731466982729,22.21340275,207.67,207.6,22.21340275]
[1731466982931,22.21340275,207.67,207.58,38.58040275]
[1731466983539,22.21340275,207.65,207.58,16.367]
[1731466983736,22.21340275,207.66,207.58,38.58040275]
[1731466983944,4.814,207.73,207.58,38.58040275]
[1731466983945,22.21340275,207.69,207.61,22.21340275]
[1731466985243,22.21340275,207.67,207.59,22.21340275]
[1731466985440,22.21340275,207.65,207.58,16.367]
[1731466985648,22.21340275,207.64,207.58,16.367]
[1731466985852,22.21340275,207.63,207.58,16.367]
[1731466986230,22.21340275,207.64,207.58,16.367]
[1731466986437,22.21340275,207.65,207.58,16.367]
[1731466986749,22.21340275,207.64,207.58,16.367]
[1731466987044,22.21340275,207.65,207.58,16.367]
[1731466988237,27.02820275,207.69,207.61,22.21340275]
[1731466988560,22.21340275,207.67,207.6,22.21340275]
[1731466989246,4.8139,207.73,207.6,22.21340275]
[1731466989447,22.21340275,207.65,207.58,16.367]
[1731466991240,22.21340275,207.63,207.58,16.367]
[1731466991440,22.21340275,207.61,207.53,45.07990275]
[1731466991830,22.21340275,207.63,207.55,22.21340275]
[1731466992035,22.21340275,207.65,207.57,22.21340275]
[1731466992526,27.02920275,207.65,207.57,22.21340275]
[1731466992750,22.21340275,207.63,207.55,22.21340275]
[1731466994351,22.21340275,207.65,207.57,22.21340275]
[1731466994648,22.21340275,207.67,207.59,22.21340275]
[1731466994856,22.21340275,207.71,207.64,22.21340275]
[1731466995033,22.21340275,207.74,207.66,22.21340275]
[1731466995451,22.21340275,207.72,207.64,37.27410275]
[1731466995945,22.21340275,207.72,207.66,22.21340275]
[1731466996232,22.21340275,207.77,207.7,22.21340275]
[1731466996434,22.21340275,207.78,207.7,22.21340275]
[1731466998149,22.21340275,207.76,207.7,22.21340275]
[1731466998650,22.21340275,207.76,207.7,334.21340275]
[1731467001057,22.21340275,207.76,207.7,22.21340275]
[1731467001954,4.8106,207.87,207.74,22.21340275]
[1731467002138,22.21340275,207.83,207.75,43.90790275]
[1731467002338,22.21340275,207.82,207.75,21.6945]
[1731467002551,22.21340275,207.78,207.71,22.21340275]
[1731467002756,0.22549,207.86,207.7,16.5323]
[1731467003054,22.21340275,207.78,207.7,38.74570275]
[1731467003559,22.21340275,207.79,207.7,38.74570275]
[1731467004059,0.4888221,207.88,207.72,22.21340275]
[1731467004249,22.21340275,207.82,207.74,22.21340275]
[1731467006140,22.21340275,207.8,207.72,22.21340275]
[1731467006347,22.21340275,207.8,207.72,42.21340275]
[1731467006560,22.21340275,207.8,207.72,22.21340275]
[1731467007652,22.21340275,207.78,207.72,22.21340275]
[1731467007835,22.21340275,207.78,207.7,38.74570275]
[1731467008042,22.21340275,207.8,207.72,22.21340275]
[1731467008742,22.21340275,207.8,207.73,20.0]
[1731467009065,22.21340275,207.82,207.75,22.21340275]
[1731467010258,4.8115,207.84,207.7,350.74570275]
[1731467010259,22.21340275,207.81,207.74,22.21340275]
[1731467010845,13.88021471,207.82,207.75,13.88021471]
[1731467011051,13.88021471,207.83,207.76,13.88021471]
[1731467011457,13.88021471,207.84,207.77,13.88021471]
[1731467011659,13.88021471,207.83,207.76,13.88021471]
[1731467011963,13.88021471,207.82,207.75,13.88021471]
[1731467013543,13.88021471,207.83,207.76,13.88021471]
[1731467013751,13.88021471,207.82,207.75,13.88021471]
[1731467014343,4.8111,207.86,207.77,13.88021471]
[1731467014544,13.88021471,207.83,207.76,13.88021471]
[1731467014945,13.88021471,207.86,207.79,13.88021471]
[1731467015150,0.4888221,207.88,207.81,13.88021471]
[1731467015460,14.36903681,207.88,207.81,13.88021471]
[1731467017249,13.88021471,207.82,207.72,15.6898]
[1731467017451,13.88021471,207.81,207.75,13.88021471]
[1731467018049,13.88021471,207.82,207.75,13.88021471]
[1731467018249,13.88021471,207.83,207.76,13.88021471]
[1731467018453,13.88021471,207.82,207.75,13.88021471]
[1731467019147,4.8113,207.85,207.77,13.88021471]
[1731467019364,13.88021471,207.83,207.77,13.88021471]
[1731467019570,13.88021471,207.82,207.75,13.88021471]
[1731467019865,4.8108,207.87,207.77,13.88021471]
[1731467020172,0.4888221,207.88,207.73,20.0]
[1731467020173,13.88021471,207.86,207.79,13.88021471]
[1731467020470,13.88021471,207.84,207.78,13.88021471]
[1731467021667,13.88021471,207.85,207.78,13.88021471]
[1731467022258,13.88021471,207.87,207.8,13.88021471]
[1731467022458,14.36903681,207.88,207.81,13.88021471]
[1731467022655,14.36903681,207.88,207.82,33.88021471]
[1731467022892,13.88021471,207.87,207.82,20.0]
[1731467023056,13.88021471,207.87,207.81,20.0]
[1731467023369,13.88021471,207.87,207.8,13.88021471]
[1731467023370,13.88021471,207.87,207.8,33.88021471]
[1731467023751,13.88021471,207.87,207.81,13.88021471]
[1731467023950,13.88021471,207.87,207.82,20.0]
[1731467024969,0.4888221,207.88,207.84,13.88021471]
[1731467025376,0.4888221,207.88,207.87,13.88021471]
[1731467025667,0.4888221,207.88,207.85,13.88021471]
[1731467026275,0.4888221,207.88,207.84,13.88021471]
[1731467026578,0.4888221,207.88,207.82,341.04931471]
[1731467026763,0.4888221,207.88,207.85,13.88021471]
[1731467027261,0.4888221,207.88,207.84,13.88021471]
[1731467027850,0.4888221,207.88,207.86,13.88021471]
[1731467028055,4.8069,208.04,207.88,66.573984]
[1731467028253,13.88021471,208.04,207.97,13.88021471]
[1731467028588,13.88021471,208.03,207.97,13.88021471]
[1731467028876,13.88021471,208.03,207.96,13.88021471]
[1731467029479,0.4888221,208.09,207.95,13.88021471]
[1731467029480,13.88021471,208.01,207.95,13.88021471]
[1731467029782,13.88021471,208.02,207.95,13.88021471]
[1731467030277,13.88021471,208.01,207.95,13.88021471]
[1731467031277,13.88021471,208.03,207.96,13.88021471]
[1731467031972,4.8064,208.06,207.97,13.88021471]
[1731467032178,14.00570471,208.07,208.0,13.88021471]
[1731467032361,13.88021471,208.06,208.0,13.88021471]
[1731467033154,0.12549,208.07,208.04,13.88021471]
[1731467033469,0.12549,208.07,208.06,13.88021471]
[1731467034776,0.12549,208.07,208.06,22.13729951]
[1731467035276,0.36333211,208.09,208.08,49.941684]
[1731467035480,0.12548999,208.09,208.08,94.21628302]
[1731467035680,0.12548999,208.09,208.08,100.01517843]
[1731467035973,0.12548999,208.09,208.08,77.87787892]
[1731467037359,0.12548999,208.09,208.08,48.30209951]
[1731467038880,0.12548999,208.09,208.08,20.0]
[1731467039386,0.12548999,208.09,208.08,42.13729951]
[1731467039597,0.12548999,208.09,208.08,20.0]
[1731467040074,0.12548999,208.09,208.06,16.3173]
[1731467040378,22.2627895,208.09,208.03,28.53109951]
[1731467040581,22.2627895,208.09,208.02,22.13729951]
[1731467041664,22.2627895,208.09,208.03,22.13729951]
[1731467041868,0.12548999,208.09,208.04,22.13729951]
[1731467042268,0.12548999,208.09,208.03,22.13729951]
[1731467042690,22.13729951,208.08,208.02,22.13729951]
[1731467043181,0.12548999,208.09,208.04,22.13729951]
[1731467043485,22.13729951,208.08,208.02,22.13729951]
[1731467043675,22.13729951,208.07,208.01,37.62479951]
[1731467044085,22.13729951,208.08,208.01,37.62479951]
[1731467044385,22.2627895,208.09,208.03,22.13729951]
[1731467044588,27.0683895,208.09,208.03,22.13729951]
[1731467044778,27.0683895,208.09,208.02,22.13729951]
[1731467045088,22.13729951,208.05,207.98,22.13729951]
[1731467045412,22.13729951,208.07,208.0,22.13729951]
[1731467045763,22.13729951,208.07,208.01,22.13729951]
[1731467045968,11.41438999,208.09,208.03,22.13729951]
[1731467045969,0.12548999,208.09,208.03,22.13729951]
[1731467046186,22.2627895,208.09,208.02,22.13729951]
[1731467046400,22.13729951,208.08,208.02,22.13729951]
[1731467046683,22.13729951,208.06,207.99,22.13729951]
[1731467046894,22.13729951,208.08,208.01,22.13729951]
[1731467047082,22.13729951,208.08,208.02,22.13729951]
[1731467047389,22.13729951,208.08,208.01,22.13729951]
[1731467047595,22.13729951,208.07,208.01,22.13729951]
[1731467048185,22.13729951,208.06,208.0,22.13729951]
[1731467048597,22.13729951,208.06,207.99,22.13729951]
[1731467048886,22.13729951,208.07,208.0,22.13729951]
[1731467049777,22.13729951,208.06,208.0,22.13729951]
[1731467050394,22.13729951,208.06,207.99,22.13729951]
[1731467050903,22.13729951,208.06,207.99,5.63729951]
[1731467051578,22.13729951,208.02,207.96,15.2332]
[1731467051778,22.13729951,208.05,207.99,22.13729951]
[1731467052213,4.8063,208.06,207.98,22.13729951]
[1731467052373,22.13729951,208.06,208.0,22.13729951]
[1731467052580,22.13729951,208.06,207.99,22.13729951]
[1731467053204,22.13729951,208.06,208.0,22.13729951]
[1731467053388,22.13729951,208.06,207.99,22.13729951]
[1731467053578,22.13729951,208.08,208.02,22.13729951]
[1731467054077,22.13729951,208.08,208.01,22.13729951]
[1731467054278,22.13729951,208.08,208.02,22.13729951]
[1731467054502,0.12548999,208.09,208.03,22.13729951]
[1731467054991,13.84385566,208.08,208.01,13.84385566]
[1731467055893,13.84385566,208.07,208.0,13.84385566]
[1731467056199,13.84385566,208.05,207.98,13.84385566]
[1731467057609,13.84385566,208.04,207.97,13.84385566]
[1731467057908,13.84385566,208.03,207.96,29.07705566]
[1731467058086,13.84385566,208.02,207.95,13.84385566]
[1731467058594,13.84385566,208.03,207.96,13.84385566]
[1731467058800,13.84385566,208.05,207.99,13.84385566]
[1731467059393,13.84385566,208.04,207.98,13.84385566]
[1731467059696,13.84385566,208.07,208.0,13.84385566]
[1731467061200,13.84385566,208.06,207.99,13.84385566]
[1731467063305,13.84385566,208.06,207.99,325.84385566]
[1731467064578,13.84385566,208.05,207.99,312.0]
[1731467065200,13.84385566,208.0,207.94,20.0]
[1731467065898,13.84385566,207.95,207.89,8.57341963]
[1731467066084,13.84385566,207.95,207.68,24.77100947]
[1731467066085,13.84385566,207.9,207.81,22.7021]
[1731467066292,6.2682,207.99,207.81,22.7021]
[1731467066293,13.84385566,207.86,207.81,22.7021]
[1731467066493,13.84385566,207.88,207.81,36.54595566]
[1731467066787,4.8081,207.98,207.81,22.9021]
[1731467066990,22.18876115,207.93,207.87,22.18876115]
[1731467067509,6.0682,207.99,207.82,5.17526894]
[1731467067510,22.18876115,207.96,207.89,22.18876115]
[1731467067679,10.8762,207.99,207.81,22.7021]
[1731467068080,10.8762,207.99,207.84,312.0]
[1731467068803,22.18876115,207.85,207.79,5.01796622]
[1731467068983,22.18876115,207.9,207.76,16.4581]